[Event "86th Tata Steel Tienkamp 2024"]
[Site "Wijk aan Zee"]
[Date "2024.01.24"]
[Round "6.2"]
[White "De Winter, Arthur"]
[Black "Pijpers, Arthur"]
[Result "1/2-1/2"]
[ECO "B76"]
[WhiteElo "2409"]
[BlackElo "2441"]
[Annotator "TA"]
[PlyCount "126"]
[EventDate "2024.01.02"]
[EventType "tourn"]
[EventCountry "NED"]
[SourceTitle "playchess.com"]
[Source "ChessBase"]
[SourceQuality "1"]
[TimeControl "40/6000+30:20/3000+30:900+30"]

{[%evp 26,126,32,38,36,29,41,44,42,35,34,36,47,8,90,89,88,95,81,90,91,95,93,87,89,65,70,62,108,84,133,93,140,135,135,95,100,92,92,104,133,107,108,27,27,32,160,117,191,191,181,191,191,3,654,655,539,632,560,504,1056,940,5185,6375,29975,29976,29976,29977,29975,0,0,0,0,0,0,0,0,0,0,0,0,0,0,0,0,0,0,0,0,0,0,0,0,0,0,0,0,0,0,0,0,0,0]} 1. e4 {[%emt 0:10:04]} c5 {[%emt 0:10:04]} 2. Nf3 {[%emt 0:00:04]} d6 {[%emt 0:00:03]} 3. d4 {[%emt 0:00:04]} cxd4 {[%emt 0:00:04]} 4. Nxd4 {[%emt 0:00:03]} Nf6 {[%emt 0:00:05]} 5. Nc3 {[%emt 0:00:04]} g6 {[%emt 0:00:04]} 6. Be3 {[%emt 0:00:24]} Bg7 {[%emt 0:00:03]} 7. f3 {[%emt 0:00:06]} Nc6 {[%emt 0:00:03]} 8. Qd2 {[%emt 0:00:06]} O-O {[%emt 0:00:05]} 9. O-O-O {[%emt 0:00:07]} d5 {[%emt 0:00:02]} 10. exd5 {[%emt 0:00:07]} Nxd5 {[%emt 0:00:04]} 11. Nxc6 {[%emt 0:00:02]} bxc6 {[%emt 0:00:06]} 12. Bd4 {[%emt 0:00:55]} Bxd4 {[%emt 0:00:05]} 13. Qxd4 {[%emt 0:00:06]} Qb6 {[%emt 0:00:04]} 14. Na4 {[%emt 0:01:01]} Qc7 {[%emt 0:00:11] 14...Qc7 scores better than 14...Qa5. B76: Sicilian Dragon: Yugoslav Attack, 9 g4 and 9 0-0-0.} 15. Bc4 {[%emt 0:03:39]} Nb6 {[%emt 0:00:27] White must now prevent ...e5.} 16. Bb3 {[%emt 0:02:49]} Nxa4 {[%emt 0:00:42] White is slightly better.} 17. Qxa4 {[%emt 0:04:14]} c5 {[%emt 0:00:10]} 18. h4 {[%emt 0:31:19]} h5 {[%emt 0:00:15] [#]} 19. g4 $146 {[%emt 0:05:52]} ({Predecessor:} 19. Rhe1 Rb8 20. Qe4 e6 21. Qe5 Rb7 22. Bc4 Qxe5 23. Rxe5 Rc7 24. Rd3 Kg7 25. f4 {1-0 To,N (2354)-Kshatriya,N (2224) Budapest FS04 IM 2023 (1)}) 19... c4 {[%emt 0:22:16]} 20. Qxc4 $16 {[%emt 0:02:24]} Qxc4 {[%emt 0:00:09]} 21. Bxc4 {[%emt 0:00:03] gxh5 is the strong threat.} hxg4 {[%emt 0:00:07]} 22. Rhg1 {[%emt 0:02:42]} gxf3 {[%emt 0:21:41]} 23. Rxg6+ {[%emt 0:02:49]} Kh7 {[%emt 0:00:02]} 24. Rg3 $36 {[%emt 0:02:57][%cal Od1e1][%mdl 2048] White has strong initiative.} Bf5 {[%emt 0:25:57]} 25. Bd3 {[%emt 0:02:12]} (25. Rxf3 Bg4 26. Rdd3 (26. Rxf7+ Rxf7 27. Bxf7 Bxd1 $17) 26... Bxf3 27. Rxf3 Kg6 $17) 25... Bxd3 {[%emt 0:00:39]} 26. Rxd3 $14 {[%emt 0:00:39][%mdl 4096] Endgame KRR-KRR} f2 {[%emt 0:10:23]} (26... f5 $14) 27. Rgf3 {[%emt 0:00:54]} Kg6 {[%emt 0:06:09]} (27... f5 $142) 28. Rd7 {[%emt 0:02:31]} Rfe8 {[%emt 0:02:58]} (28... Rae8 $142) 29. Rxf2 $16 {[%emt 0:01:10][%cal Oh4h5]} f5 {[%emt 0:00:01]} 30. c4 {[%emt 0:13:56][%cal Oh4h5]} Kf6 {[%emt 0:00:02]} 31. c5 {[%emt 0:02:28] White has more active pieces.} Rh8 {[%emt 0:00:42]} 32. Rd4 {[%emt 0:01:10]} Rac8 {[%emt 0:05:01]} 33. b4 {[%emt 0:01:23]} Ke5 {[%emt 0:00:57]} 34. Rc4 {[%emt 0:04:17]} (34. Rdf4 $16) 34... Kd5 $1 $11 {[%emt 0:00:34]} 35. Rcf4 {[%emt 0:00:11]} (35. Rxf5+ $2 Kxc4 36. Rf4+ Kd5 $19) 35... e6 {[%emt 0:04:53]} (35... e5 $14 36. Rd2+ (36. Rxf5 Rxh4 37. Re2 Rc4+ 38. Kd1 Rxb4 $11) 36... Kc6 37. Rd6+ (37. Rxf5 Rxh4 38. Rxe5 Rxb4 $11) 37... Kb5) 36. Kc2 {[%emt 0:03:04]} Rcg8 {[%emt 0:00:01]} (36... a5 $16 {might work better.}) 37. Rd2+ $18 {[%emt 0:03:38]} Ke5 {[%emt 0:00:02]} 38. Rc4 {[%emt 0:00:56]} Rg4 {[%emt 0:02:02]} 39. Kc3 {[%emt 0:05:46]} (39. Rc3 $1 $18) 39... Rxc4+ $4 {[%emt 0:01:24][%mdl 8192]} (39... Rhxh4 $11 40. Rxg4 fxg4) 40. Kxc4 $11 {[%emt 0:00:04] KR-KR} f4 {[%emt 0:00:04][%cal Of4f3] [#] ...f3! would be deadly.} 41. c6 $1 {[%emt 0:47:40][%cal Bc5c6,Bc6c7][%mdl 32] aiming for Kc5.} f3 {[%emt 0:20:01][%cal Oe5f4]} 42. Kc5 {[%emt 0:00:30]} Kf4 {[%emt 0:25:15]} (42... Rc8 $142 43. Rd7 Kf4 44. Rf7+ (44. Rxa7 Rf8 $16) 44... Kg3) 43. c7 $18 {[%emt 0:00:49] Strongly threatening Kc6.} Rc8 {[%emt 0:00:29] [#]} 44. Kc6 $1 {[%emt 0:00:58]} e5 {[%emt 0:00:02]} 45. Rd8 {[%emt 0:00:54][%mdl 64] Trapped Piece} Rxc7+ {[%emt 0:00:02]} 46. Kxc7 {[%emt 0:00:05] KR-K3P} e4 {[%emt 0:00:02]} 47. Re8 $2 {[%emt 0:02:32]} (47. h5 {mates} Kg5 48. Rf8 Kxh5 49. Kd6 f2 50. Rxf2 Kg4 51. Ke5 e3 52. Rf4+ Kg3 53. Ke4) 47... f2 $1 $11 {[%emt 0:04:56] The position is equal.} 48. Rf8+ {[%emt 0:02:30]} Kg3 {[%emt 0:00:01] And now ...e3 would win.} 49. h5 {[%emt 0:00:09]} e3 {[%emt 0:00:01]} 50. h6 {[%emt 0:00:20]} e2 {[%emt 0:00:01]} 51. h7 {[%emt 0:01:05]} e1=Q {[%emt 0:02:22] ( -> ...Qe7+)} 52. h8=Q {[%emt 0:00:14] Some like it hot} (52. h8=R $2 {too greedy.} f1=Q 53. Rhg8+ Kh2 54. Rh8+ Qh3 55. Rxh3+ Kxh3 $19) 52... Qe7+ {[%emt 0:00:01]} 53. Kc8 {[%emt 0:01:12]} Qe6+ {[%emt 0:00:02]} 54. Kb7 {[%emt 0:00:40]} Qb6+ {[%emt 0:02:21]} 55. Ka8 {[%emt 0:00:04]} Qc6+ {[%emt 0:00:03]} 56. Kxa7 {[%emt 0:00:03]} Qa4+ $1 {[%emt 0:00:02]} 57. Kb6 {[%emt 0:01:33] Qg7+ would kill now.} Qxb4+ {[%emt 0:00:00]} 58. Kc7 {[%emt 0:00:27]} Qc5+ {[%emt 0:02:00]} 59. Kd7 {[%emt 0:00:06] White wants to mate with Qg8+.} Qd5+ {[%emt 0:00:30]} 60. Kc7 {[%emt 0:00:10] Threatening mate with Qg7+.} Qc5+ {[%emt 0:00:03]} 61. Kd7 {[%emt 0:15:24]} Qd5+ {[%emt 0:15:04]} 62. Ke7 {[%emt 0:01:00] Intending Qg7+ and mate.} Qc5+ {[%emt 0:00:14]} 63. Kd7 {[%emt 0:00:13] White threatens Qg8+ and mate.} Qd5+ {[%emt 0:00:03] Blacks defense is rewarded with a draw.   Weighted Error Value: White=0.18 (very precise) /Black=0.33} 1/2-1/2

[Event "86th Tata Steel Tienkamp 2024"]
[Site "Wijk aan Zee"]
[Date "2024.01.24"]
[Round "6.3"]
[White "Baselmans, Luuk"]
[Black "Abdulla, Murad"]
[Result "1-0"]
[ECO "B06"]
[WhiteElo "2323"]
[BlackElo "2332"]
[Annotator "TA"]
[PlyCount "75"]
[EventDate "2024.01.02"]
[EventType "tourn"]
[EventCountry "NED"]
[SourceTitle "playchess.com"]
[Source "ChessBase"]
[SourceQuality "1"]
[TimeControl "40/6000+30:20/3000+30:900+30"]

{[%evp 9,75,21,32,34,41,56,68,40,38,36,38,51,33,35,75,77,67,80,76,88,77,0,75,43,182,3,88,0,0,-91,-43,-38,50,34,75,66,93,91,83,69,143,31,94,91,120,74,356,161,251,265,858,873,875,859,944,954,965,963,954,933,923,926,994,1036,1154,1046,29998,29999]} 1. e4 {[%emt 0:10:03]} g6 {[%emt 0:13:41]} 2. d4 {[%emt 0:00:34]} Bg7 {[%emt 0:00:18]} 3. Nc3 {[%emt 0:00:19]} a6 {[%emt 0:00:18]} 4. h4 {[%emt 0:00:37]} h5 {[%emt 0:00:09]} 5. Be3 {[%emt 0:06:01]} b5 {[%emt 0:01:11]} 6. Nh3 {[%emt 0:03:11]} Bb7 {[%emt 0:04:45]} 7. Ng5 {[%emt 0:02:57]} d6 {[%emt 0:00:23]} 8. g4 {[%emt 0:04:30] White is slightly better.} hxg4 {[%emt 0:12:11]} 9. Qxg4 {[%emt 0:00:17][%cal Og5f7] Black must now prevent Nxf7!} Nd7 {[%emt 0:03:19]} 10. Bh3 {[%emt 0:09:05][%cal Og5e6] Threatens to win with Ne6!} Ngf6 {[%emt 0:07:18]} 11. Qg2 {[%emt 0:00:50]} Nf8 {[%emt 0:08:08][%cal Oe7e6] Repels Be6} 12. O-O-O {[%emt 0:04:40]} e6 {[%emt 0:01:31][%cal Od8e7]} 13. d5 {[%emt 0:20:09]} Qe7 {[%emt 0:01:50]} 14. dxe6 {[%emt 0:02:09] White has more active pieces.} fxe6 {[%emt 0:00:22][%cal Oe8c8]} 15. f4 {[%emt 0:02:50]} (15. f3 $16) 15... O-O-O {[%emt 0:05:54]} (15... Rxh4 $11 16. Qf1 b4) 16. Qd2 {[%emt 0:07:49]} (16. Qf2 {seems wilder.} N6d7 17. e5 Bxh1 18. Rxh1 dxe5 19. Qf3) 16... Kb8 {[%emt 0:10:08]} (16... Rxh4 $14 17. Bxe6+ Nxe6 18. Rxh4 Nxe4 19. Ncxe4 (19. Nd5 Bxd5 20. Qxd5 N6xg5 $11) 19... Bxe4) 17. Bg2 $2 {[%emt 0:11:10]} (17. e5 $1 $18 {[%cal Re5f6]}) 17... N8d7 {[%emt 0:13:44]} (17... N8h7 $11 {keeps the balance.}) 18. Qe2 {[%emt 0:03:48]} ({White should play} 18. a4 $16) 18... Nh5 $11 {[%emt 0:07:10] aiming for ...Bxc3.} 19. Rh3 {[%emt 0:02:22]} (19. Qe1 $11) 19... Nb6 {[%emt 0:03:56]} (19... Bxc3 $17 20. bxc3 Rdf8) 20. e5 $15 {[%emt 0:04:41]} d5 {[%emt 0:03:16]} (20... Bxg2 $15 21. Qxg2 dxe5 22. fxe5 Bxe5 (22... Rxd1+ 23. Nxd1 Bxe5 24. Bxb6 $15) 23. Bxb6 Rxd1+ (23... cxb6 24. Qf2 $15) 24. Nxd1 cxb6) 21. Bxb6 $1 $14 {[%emt 0:03:30]} cxb6 {[%emt 0:01:24]} 22. Qg4 $36 {[%emt 0:00:21][%mdl 2048] White is more active.} Bc8 {[%emt 0:04:34] [#]} 23. Ne2 $1 {[%emt 0:00:15]} Bd7 {[%emt 0:00:38]} 24. Kb1 {[%emt 0:00:52]} Rc8 {[%emt 0:01:33]} (24... Bh6 $14) 25. Rc3 {[%emt 0:01:14]} (25. Nd4 $16) 25... Rhf8 {[%emt 0:04:20]} (25... Rxc3 $14 26. Nxc3 Bh6) 26. Rxc8+ $16 {[%emt 0:00:51]} Bxc8 {[%emt 0:00:05]} 27. Nd4 {[%emt 0:00:38]} ({Better is} 27. Bf3) 27... Bd7 $2 {[%emt 0:01:19][%mdl 8192]} (27... Qe8 $16) 28. Rf1 {[%emt 0:02:18]} (28. Ndxe6 $2 Nxf4 29. Bh3 (29. Bxd5 $2 Nxd5 30. a4 Nc7 $19) 29... Ka7 $17 (29... Bxe5 30. Qg1 $16)) (28. Ngxe6 $142 Nxf4 29. Qf3 (29. Nxf8 Bxg4 30. Nc6+ Kb7 $11) 29... Bxe5 (29... Nxe6 $2 30. Qxd5 Nc5 31. Qa8+ Kc7 32. Qa7+ Kc8 33. Nc6 $18) 30. Nxf4 (30. Nxf8 Qxf8 $18)) 28... Bh6 {[%emt 0:00:30]} (28... Qc5 $142 29. Qd1 (29. Ngxe6 Qxd4 30. a3 Qc5 $19) (29. Ndxe6 Nxf4 30. Qxf4 Rxf4 $11) 29... Qc8 (29... Rxf4 $2 30. Ngxe6 Rxd4 31. Nxd4 $18) (29... Nxf4 $2 30. Rxf4 Re8 31. Qe2 $18)) 29. Ngxe6 $18 {[%emt 0:01:19]} Nxf4 {[%emt 0:00:33] [#]} (29... Qe8) 30. Nxf8 $1 {[%emt 0:00:27] Excellent horsemanship.} Bxg4 {[%emt 0:00:17]} 31. Nc6+ {[%emt 0:00:06]} Kc7 {[%emt 0:00:18]} 32. Nxe7 {[%emt 0:00:07]} Nxg2 {[%emt 0:00:06]} 33. Nxd5+ {[%emt 0:00:27]} Kc6 {[%emt 0:00:10]} 34. Nb4+ {[%emt 0:00:33]} Kc5 {[%emt 0:00:04]} 35. Nd3+ {[%emt 0:00:58]} Kd5 {[%emt 0:00:05]} 36. Nxg6 {[%emt 0:00:22]} Ne3 {[%emt 0:00:16]} 37. Rf6 {[%emt 0:01:06]} Bg7 {[%emt 0:02:06]} 38. Ne7+ {[%emt 0:00:15] Weighted Error Value: White=0.37/Black=0.72.  Loses game:     	---       	Black=1      Missed win:     	White=1     	---        Mistake:       	White=6     	Black=9      Inaccurate:     	White=2     	Black=3      OK:         	White=8     	Black=9      Best:        	White=4     	---        Strong:       	White=2     	---} 1-0

[Event "86th Tata Steel Tienkamp 2024"]
[Site "Wijk aan Zee"]
[Date "2024.01.24"]
[Round "6.4"]
[White "Bekker, Stefan"]
[Black "Niermann, Tristan"]
[Result "0-1"]
[ECO "C55"]
[WhiteElo "2274"]
[BlackElo "2413"]
[Annotator "ChessBase"]
[PlyCount "64"]
[EventDate "2024.01.02"]
[EventType "tourn"]
[EventCountry "NED"]
[SourceTitle "playchess.com"]
[Source "ChessBase"]
[SourceQuality "1"]
[TimeControl "40/6000+30:20/3000+30:900+30"]

1. e4 {[%emt 0:10:03]} e5 {[%emt 0:10:07]} 2. Nf3 {[%emt 0:00:05]} Nc6 {[%emt 0:00:04]} 3. Bc4 {[%emt 0:00:04]} Nf6 {[%emt 0:00:23]} 4. d3 {[%emt 0:00:07]} Be7 {[%emt 0:00:19]} 5. O-O {[%emt 0:03:47]} O-O {[%emt 0:00:32]} 6. a4 {[%emt 0:01:31]} d5 {[%emt 0:03:05]} 7. exd5 {[%emt 0:01:48]} Nxd5 {[%emt 0:00:06]} 8. a5 {[%emt 0:00:14]} a6 {[%emt 0:01:53]} 9. Re1 {[%emt 0:02:53]} Bg4 {[%emt 0:02:57]} 10. c3 {[%emt 0:03:46]} Qd7 {[%emt 0:07:01]} 11. Bb3 {[%emt 0:10:10]} Kh8 {[%emt 0:03:51]} 12. Bc2 {[%emt 0:08:17]} Bh5 {[%emt 0:07:02]} 13. Nbd2 {[%emt 0:01:53]} f5 {[%emt 0:00:52]} 14. Nf1 {[%emt 0:02:41]} Bf6 {[%emt 0:06:23]} 15. Ng3 {[%emt 0:00:44]} Bf7 {[%emt 0:01:56]} 16. Ra4 {[%emt 0:09:28]} h6 {[%emt 0:05:07]} 17. Nd2 {[%emt 0:03:12]} g6 {[%emt 0:03:53]} 18. Nb3 {[%emt 0:02:10]} Kg7 {[%emt 0:00:58]} 19. Nc5 {[%emt 0:01:13]} Qc8 {[%emt 0:03:44]} 20. Nb3 {[%emt 0:13:18]} Rd8 {[%emt 0:03:03]} 21. Qe2 {[%emt 0:03:22]} b5 {[%emt 0:04:45]} 22. axb6 {[%emt 0:04:02]} cxb6 {[%emt 0:00:34]} 23. Ra1 {[%emt 0:00:57]} a5 {[%emt 0:00:15]} 24. Nd2 {[%emt 0:13:04]} Nf4 {[%emt 0:03:00]} 25. Qf1 {[%emt 0:00:05]} Nb4 {[%emt 0:03:52]} 26. cxb4 {[%emt 0:09:31]} Qxc2 {[%emt 0:00:07]} 27. Nc4 {[%emt 0:01:05]} Nxd3 {[%emt 0:01:21]} 28. Nxb6 {[%emt 0:01:24]} Nxe1 {[%emt 0:00:13]} 29. Nxa8 {[%emt 0:00:20]} Rd1 {[%emt 0:00:17]} 30. Bxh6+ {[%emt 0:01:44]} Kxh6 {[%emt 0:00:10]} 31. Rxd1 {[%emt 0:00:05]} Qxd1 {[%emt 0:00:07]} 32. bxa5 {[%emt 0:00:40]} Bc4 {[%emt 0:00:10]} 0-1

[Event "86th Tata Steel Tienkamp 2024"]
[Site "Wijk aan Zee"]
[Date "2024.01.24"]
[Round "6.5"]
[White "Pastar, Slaven"]
[Black "Van Foreest, Machteld"]
[Result "1/2-1/2"]
[ECO "C47"]
[WhiteElo "2343"]
[BlackElo "2363"]
[Annotator "RC"]
[PlyCount "67"]
[EventDate "2024.01.02"]
[EventType "tourn"]
[EventCountry "NED"]
[SourceTitle "playchess.com"]
[Source "ChessBase"]
[SourceQuality "1"]
[TimeControl "40/6000+30:20/3000+30:900+30"]

1. e4 {[%emt 0:10:16]} e5 {[%emt 0:10:27]} 2. Nf3 {[%emt 0:00:55]} Nc6 {[%emt 0:00:35]} 3. Nc3 {[%emt 0:00:51]} Nf6 {[%emt 0:00:27]} 4. d4 {[%emt 0:00:45]} exd4 {[%emt 0:00:24]} 5. Nxd4 {[%emt 0:00:06]} Bb4 {[%emt 0:00:07]} 6. Nxc6 {[%emt 0:00:35]} bxc6 {[%emt 0:00:07]} 7. Bd3 {[%emt 0:00:35]} d5 {[%emt 0:00:12]} 8. exd5 {[%emt 0:00:47]} O-O {[%emt 0:01:58]} 9. O-O {[%emt 0:00:22]} Bg4 {[%emt 0:03:09]} 10. Ne2 {[%emt 0:02:53]} cxd5 {[%emt 0:04:08]} 11. h3 {[%emt 0:00:13]} Bh5 {[%emt 0:00:56]} 12. c4 {[%emt 0:01:35]} dxc4 {[%emt 0:10:18]} 13. Bxc4 {[%emt 0:00:22]} Qxd1 {[%emt 0:00:52]} 14. Rxd1 {[%emt 0:00:04]} Bc5 {[%emt 0:00:08]} 15. g4 {[%emt 0:07:08]} Bg6 {[%emt 0:00:38]} 16. Nc3 {[%emt 0:18:35]} Rae8 {[%emt 0:05:41]} 17. Bg5 {[%emt 0:07:07]} Ne4 {[%emt 0:02:25]} 18. Nxe4 {[%emt 0:02:38]} Bxe4 {[%emt 0:01:36]} 19. Rac1 {[%emt 0:03:06]} Bb6 {[%emt 0:07:25]} 20. Rd7 {[%emt 0:06:15]} Bc6 {[%emt 0:03:42]} 21. Rd2 {[%emt 0:03:36]} Bf3 {[%emt 0:02:04]} 22. Rd7 {[%emt 0:03:30]} Bc6 {[%emt 0:00:34]} 23. Rxf7 {[%emt 0:05:39]} Rxf7 {[%emt 0:00:13]} 24. Bxf7+ {[%emt 0:00:05]} Kxf7 {[%emt 0:00:03]} 25. Rxc6 {[%emt 0:00:07]} Re1+ {[%emt 0:00:15]} 26. Kg2 {[%emt 0:00:43]} Re2 {[%emt 0:00:04]} 27. Be3 {[%emt 0:04:11]} Bxe3 {[%emt 0:00:08]} 28. Kf3 {[%emt 0:00:09]} Rxb2 {[%emt 0:00:58]} 29. Rxc7+ {[%emt 0:00:24]} Kf6 {[%emt 0:00:08]} 30. fxe3 {[%emt 0:00:20]} Rxa2 {[%emt 0:00:04]} 31. Rc6+ {[%emt 0:00:31]} Ke5 {[%emt 0:01:35]} 32. Rc7 {[%emt 0:00:07]} Kf6 {[%emt 0:00:15]} 33. Rc6+ {[%emt 0:00:04]} Ke5 {[%emt 0:00:02]} 34. Rc7 {[%emt 0:00:07]} 1/2-1/2

[Event "86th Tata Steel Tienkamp 2024"]
[Site "Wijk aan Zee"]
[Date "2024.01.26"]
[Round "7.1"]
[White "Pijpers, Arthur"]
[Black "Zwirs, Nico"]
[Result "1/2-1/2"]
[ECO "C56"]
[WhiteElo "2441"]
[BlackElo "2476"]
[Annotator "TA"]
[PlyCount "40"]
[EventDate "2024.01.02"]
[EventType "tourn"]
[EventCountry "NED"]
[SourceTitle "playchess.com"]
[Source "ChessBase"]
[SourceQuality "1"]
[TimeControl "40/6000+30:20/3000+30:900+30"]

{[%evp 22,40,0,1,4,0,2,8,0,0,0,3,43,54,62,0,0,0,0,0,7]} 1. e4 {[%emt 0:10:04]} e5 {[%emt 0:10:04]} 2. Nf3 {[%emt 0:00:04]} Nc6 {[%emt 0:00:05]} 3. Bc4 {[%emt 0:00:04]} Nf6 {[%emt 0:01:37]} 4. d4 {[%emt 0:00:10]} exd4 {[%emt 0:01:16]} 5. O-O {[%emt 0:00:06]} Nxe4 {[%emt 0:05:34]} 6. Re1 {[%emt 0:00:11]} d5 {[%emt 0:00:11]} 7. Bxd5 {[%emt 0:00:04]} Qxd5 {[%emt 0:00:11]} 8. Nc3 {[%emt 0:00:05]} Qa5 {[%emt 0:01:58]} 9. Nxe4 {[%emt 0:00:22]} Be6 {[%emt 0:01:43]} 10. Neg5 {[%emt 0:00:17]} O-O-O {[%emt 0:00:32]} 11. Nxe6 {[%emt 0:00:11]} fxe6 {[%emt 0:00:06]} 12. Rxe6 {[%emt 0:00:06] Weiss will Bg5 spielen.} Qd5 {[%emt 0:01:05]} 13. Qe2 {[%emt 0:11:57] Mit der Idee Bg5.} Bc5 {[%emt 0:00:29]} 14. Bg5 {[%emt 0:27:45]} Rdf8 {[%emt 0:00:52][%cal Of8f3]} 15. Qe4 {[%emt 0:15:46]} Qxe4 {[%emt 0:09:53]} 16. Rxe4 {[%emt 0:02:10]} Re8 {[%emt 0:25:40]} 17. Rae1 {[%emt 0:02:20]} Kd7 {[%emt 0:02:06]} 18. Rxe8 {[%emt 0:10:53]} (18. Kf1 $14) 18... Rxe8 $11 {[%emt 0:00:41] Die Stellung ist ausgeglichen.} 19. Rxe8 {[%emt 0:00:04]} Kxe8 {[%emt 0:00:19]} 20. Kf1 {[%emt 0:00:15]} Kd7 {[%emt 0:06:46] Gewichteter Fehlerwert: Weiß=0.10 (sehr präzise) /Schwarz=0.07 (makellos) .  Fehler:       	Weiß=1     	---        Ungenau:       	---       	Schwarz=1     OK:         	Weiß=4     	Schwarz=4} 1/2-1/2

[Event "86th Tata Steel Tienkamp 2024"]
[Site "Wijk aan Zee"]
[Date "2024.01.26"]
[Round "7.2"]
[White "Niermann, Tristan"]
[Black "Baselmans, Luuk"]
[Result "1-0"]
[ECO "A47"]
[WhiteElo "2413"]
[BlackElo "2323"]
[Annotator "RC"]
[PlyCount "55"]
[EventDate "2024.01.02"]
[EventType "tourn"]
[EventCountry "NED"]
[SourceTitle "playchess.com"]
[Source "ChessBase"]
[SourceQuality "1"]
[TimeControl "40/6000+30:20/3000+30:900+30"]

1. d4 {[%emt 0:10:03]} Nf6 {[%emt 0:10:13]} 2. Nf3 {[%emt 0:00:16]} e6 {[%emt 0:00:24]} 3. Bf4 {[%emt 0:00:09]} b6 {[%emt 0:04:08]} 4. Nbd2 {[%emt 0:00:54]} Bb7 {[%emt 0:00:16]} 5. e3 {[%emt 0:00:21]} g6 {[%emt 0:03:54]} 6. Bd3 {[%emt 0:01:38]} d5 {[%emt 0:08:51]} 7. c3 {[%emt 0:04:08]} Bg7 {[%emt 0:01:47]} 8. h4 {[%emt 0:00:21]} Nbd7 {[%emt 0:03:05]} 9. Ne5 {[%emt 0:02:58]} Nxe5 {[%emt 0:06:26]} 10. Bxe5 {[%emt 0:02:43]} h5 {[%emt 0:07:39]} 11. Qe2 {[%emt 0:05:46]} Qe7 {[%emt 0:03:56]} 12. f3 {[%emt 0:01:09]} a6 {[%emt 0:11:02]} 13. g4 {[%emt 0:01:01]} Kf8 {[%emt 0:01:37]} 14. O-O-O {[%emt 0:01:56]} c5 {[%emt 0:01:26]} 15. Nf1 {[%emt 0:05:58]} c4 {[%emt 0:02:50]} 16. Bc2 {[%emt 0:02:03]} hxg4 {[%emt 0:01:28]} 17. fxg4 {[%emt 0:00:49]} Ne4 {[%emt 0:00:17]} 18. Bxe4 {[%emt 0:02:24]} dxe4 {[%emt 0:01:46]} 19. Qh2 {[%emt 0:03:19]} Kg8 {[%emt 0:03:28]} 20. g5 {[%emt 0:02:44]} Rd8 {[%emt 0:01:41]} 21. Bc7 {[%emt 0:01:29]} Rxh4 {[%emt 0:03:21]} 22. Qxh4 {[%emt 0:00:54]} Qxc7 {[%emt 0:00:06]} 23. Nd2 {[%emt 0:00:33]} Rd5 {[%emt 0:03:43]} 24. Nxe4 {[%emt 0:00:41]} Rf5 {[%emt 0:00:33]} 25. Rdf1 {[%emt 0:04:48]} Kf8 {[%emt 0:01:25]} 26. Rhg1 {[%emt 0:01:23]} e5 {[%emt 0:03:54]} 27. Nf6 {[%emt 0:01:02]} Qe7 {[%emt 0:02:15]} 28. Rxf5 {[%emt 0:00:08]} 1-0